fUSD/lending_fUSD_20240428
["ID","MTS","AMOUNT","RATE_DAILY","PERIOD"]
[324795946,1714335103551,-500.0,0.00012602,2]
[324795947,1714335103561,-537.27,0.00012602,2]
[324795948,1714335103571,-500.0,0.00012602,2]
[324795949,1714335103581,-522.34,0.00012602,2]
[324795950,1714335103590,-500.0,0.00012602,2]
[324795951,1714335103600,-543.61,0.00012602,2]
[324795952,1714335103610,-507.29,0.00012602,2]
[324795953,1714335103619,-500.0,0.00012602,2]
[324795954,1714335103684,-1120.45,0.00012602,2]
[324795955,1714335103694,-500.0,0.00012602,2]
[324795956,1714335103703,-1025.95,0.00012602,2]
[324795957,1714335103713,-500.0,0.00012602,2]
[324795958,1714335103722,-500.0,0.00012602,2]
[324795959,1714335103732,-500.0,0.00012602,2]
[324795960,1714335103743,-500.0,0.00012602,2]
[324795961,1714335103752,-500.0,0.00012602,2]
[324795962,1714335103761,-500.0,0.00012602,2]
[324795963,1714335103771,-500.0,0.00012602,2]
[324795964,1714335103780,-500.0,0.00012602,2]
[324795965,1714335103789,-500.0,0.00012602,2]
[324795966,1714335103799,-500.0,0.00012602,2]
[324795967,1714335103808,-500.0,0.00012602,2]
[324795968,1714335103817,-500.0,0.00012602,2]
[324795969,1714335103827,-500.0,0.00012602,2]
[324795970,1714335103836,-508.08,0.00012602,2]
[324795971,1714335103846,-500.0,0.00012602,2]
[324795972,1714335103856,-500.0,0.00012602,2]
[324795973,1714335103866,-552.12,0.00012602,2]
[324795974,1714335103875,-615.27,0.00012602,2]
[324795975,1714335103885,-500.0,0.00012602,2]
[324795976,1714335103894,-500.0,0.00012602,2]
[324795977,1714335103904,-500.0,0.00012602,2]
[324795978,1714335103914,-173.34,0.00012602,2]
[324795979,1714335103923,-500.0,0.00012602,2]
[324795980,1714335103933,-591.93,0.00012602,2]
[324795981,1714335103942,-500.0,0.00012602,2]
[324795982,1714335103952,-651.59,0.00012602,2]
[324795983,1714335103961,-500.0,0.00012602,2]
[324795984,1714335103971,-2705.047166,0.00012602,2]
[324795985,1714335103983,-643.83,0.00012602,2]
[324795986,1714335103995,-571.874419,0.00012602,2]
[324795987,1714335104004,-2705.047166,0.00012602,2]
[324795988,1714335104014,-1022.25,0.00012602,2]
[324795989,1714335104025,-571.874419,0.00012602,2]
[324795990,1714335104035,-926.43,0.00012602,2]
[324795991,1714335104044,-500.0,0.00012602,2]
[324795992,1714335104054,-884.7,0.00012602,2]
[324795993,1714335104063,-500.0,0.00012602,2]
[324795994,1714335104071,-500.0,0.00012602,2]
[324795995,1714335104081,-500.0,0.00012602,2]
[324795996,1714335104090,-562.5,0.00012602,2]
[324795997,1714335104099,-1276.87,0.00012602,2]
[324795998,1714335104107,-547.13,0.00012602,2]
[324795999,1714335104117,-500.0,0.00012602,2]
[324796000,1714335104126,-151.0,0.00012602,2]
[324796001,1714335104135,-518.76,0.00012602,2]
[324796002,1714335104145,-1269.32,0.00012602,2]
[324796003,1714335104154,-500.0,0.00012602,2]
[324796004,1714335104164,-577.52,0.00012602,2]
[324796005,1714335104173,-150.04,0.00012602,2]
[324796006,1714335104183,-500.0,0.00012602,2]
[324796007,1714335104193,-500.0,0.00012602,2]
[324796008,1714335104203,-562.5,0.00012602,2]
[324796009,1714335104214,-500.0,0.00012602,2]
[324796010,1714335104225,-500.0,0.00012602,2]
[324796011,1714335104235,-989.07,0.00012602,2]
[324796012,1714335104245,-771.63,0.00012602,2]
[324796013,1714335104254,-500.0,0.00012602,2]
[324796014,1714335104263,-580.16,0.00012602,2]
[324796015,1714335104273,-500.0,0.00012602,2]
[324796016,1714335104282,-500.0,0.00012602,2]
[324796017,1714335104291,-500.0,0.00012602,2]
[324796018,1714335104299,-500.0,0.00012602,2]
[324796019,1714335104308,-500.0,0.00012602,2]
[324796020,1714335104317,-592.44,0.00012602,2]
[324796021,1714335104326,-948.26,0.00012602,2]
[324796022,1714335104335,-500.0,0.00012602,2]
[324796023,1714335104344,-500.0,0.00012602,2]
[324796024,1714335104353,-500.0,0.00012602,2]
[324796025,1714335104363,-500.0,0.00012602,2]
[324796026,1714335104371,-398.89,0.00012602,2]
[324796027,1714335104381,-676.95,0.00012602,2]
[324796028,1714335104392,-500.0,0.00012602,2]
[324796029,1714335104402,-500.0,0.00012602,2]
[324796030,1714335104411,-500.0,0.00012602,2]
[324796031,1714335104420,-500.0,0.00012602,2]
[324796032,1714335104431,-500.0,0.00012602,2]
[324796033,1714335104440,-500.0,0.00012602,2]
[324796034,1714335104450,-500.0,0.00012602,2]
[324796035,1714335104459,-1354.65,0.00012602,2]
[324796036,1714335104471,-500.0,0.00012602,2]
[324796037,1714335104481,-931.21,0.00012602,2]
[324796038,1714335104491,-1483.98,0.00012602,2]
[324796039,1714335104500,-500.0,0.00012602,2]
[324796040,1714335104510,-500.0,0.00012602,2]
[324796041,1714335104520,-500.0,0.00012602,2]
[324796042,1714335104531,-718.86,0.00012602,2]
[324796043,1714335104541,-500.0,0.00012602,2]
[324796044,1714335104550,-1102.68,0.00012602,2]
[324796045,1714335104560,-500.0,0.00012602,2]
[324796046,1714335104570,-500.0,0.00012602,2]
[324796047,1714335104579,-500.0,0.00012602,2]
[324796048,1714335104588,-500.0,0.00012602,2]
[324796049,1714335104597,-201.15,0.00012602,2]
[324796050,1714335104607,-1191.62,0.00012602,2]
[324796051,1714335104617,-500.0,0.00012602,2]
[324796052,1714335104628,-500.0,0.00012602,2]
[324796053,1714335104639,-941.05,0.00012602,2]
[324796054,1714335104648,-500.0,0.00012602,2]
[324796055,1714335104658,-500.0,0.00012602,2]
[324796056,1714335104668,-500.0,0.00012602,2]
[324796057,1714335104678,-632.24,0.00012602,2]
[324796058,1714335104687,-500.0,0.00012602,2]
[324796059,1714335104698,-500.0,0.00012602,2]
[324796060,1714335104707,-1004.38,0.00012602,2]
[324796061,1714335104716,-500.0,0.00012602,2]
[324796062,1714335104727,-500.0,0.00012602,2]
[324796063,1714335104736,-500.0,0.00012602,2]
[324796064,1714335104746,-500.0,0.00012602,2]
[324796065,1714335104756,-962.75,0.00012602,2]
[324796066,1714335104766,-520.83,0.00012602,2]
[324796067,1714335104776,-737.17,0.00012602,2]
[324796068,1714335104786,-500.0,0.00012602,2]
[324796069,1714335104795,-500.0,0.00012602,2]
[324796070,1714335104804,-500.0,0.00012602,2]
[324796071,1714335104813,-500.0,0.00012602,2]
[324796072,1714335104824,-500.0,0.00012602,2]
[324796073,1714335104834,-500.0,0.00012602,2]
[324796074,1714335104843,-151.364084,0.00012602,2]
[324796075,1714335104853,-704.1,0.00012602,2]
[324796076,1714335104862,-697.52,0.00012602,2]
[324796077,1714335104872,-151.0,0.00012602,2]
[324796078,1714335104882,-500.0,0.00012602,2]
[324796079,1714335104891,-165.626752,0.00012602,2]
[324796080,1714335104902,-500.0,0.00012602,2]
[324796081,1714335104911,-892.91,0.00012602,2]
[324796082,1714335104921,-500.0,0.00012602,2]
[324796083,1714335104931,-532.66,0.00012602,2]
[324796084,1714335104941,-543.87,0.00012602,2]
[324796085,1714335104952,-500.0,0.00012602,2]
[324796086,1714335104963,-1931.86,0.00012602,2]
[324796087,1714335104972,-2005.27,0.00012602,2]
[324796088,1714335104982,-500.0,0.00012602,2]
[324796089,1714335104992,-645.7,0.00012602,2]
[324796090,1714335105001,-500.0,0.00012602,2]
[324796091,1714335105011,-500.0,0.00012602,2]
[324796092,1714335105020,-562.5,0.00012602,2]
[324796093,1714335105030,-520.83,0.00012602,2]
[324796094,1714335105039,-500.0,0.00012602,2]
[324796095,1714335105048,-151.0,0.00012602,2]
[324796096,1714335105058,-500.0,0.00012602,2]
[324796097,1714335105067,-500.0,0.00012602,2]
[324796098,1714335105076,-1002.82,0.00012602,2]
[324796099,1714335105085,-500.0,0.00012602,2]
[324796100,1714335105094,-151.0,0.00012602,2]
[324796101,1714335105103,-500.0,0.00012602,2]
[324796102,1714335105112,-290.756738,0.00012602,2]
[324796103,1714335105121,-500.0,0.00012602,2]
[324796104,1714335105132,-290.756738,0.00012602,2]
[324796105,1714335105142,-607.23,0.00012602,2]
[324796106,1714335105154,-635.97,0.00012602,2]
[324796107,1714335105163,-500.0,0.00012602,2]
[324796108,1714335105173,-665.39,0.00012602,2]
[324796109,1714335105184,-500.0,0.00012602,2]
[324796110,1714335105194,-243.36,0.00012602,2]
[324796111,1714335105205,-500.0,0.00012602,2]
[324796112,1714335105214,-500.0,0.00012602,2]
[324796113,1714335105224,-500.0,0.00012602,2]
[324796114,1714335105234,-708.13,0.00012602,2]
[324796115,1714335105244,-500.0,0.00012602,2]
[324796116,1714335105254,-1615.1,0.00012602,2]
[324796117,1714335105263,-217.372388,0.00012602,2]
[324796118,1714335105274,-504.6,0.00012602,2]
[324796119,1714335105284,-500.0,0.00012602,2]
[324796120,1714335105294,-1130.11,0.00012602,2]
[324796121,1714335105304,-582.99,0.00012602,2]
[324796122,1714335105314,-565.17,0.00012602,2]
[324796123,1714335105324,-151.0,0.00012602,2]
[324796124,1714335105335,-217.372388,0.00012602,2]
[324796125,1714335105345,-534.03,0.00012602,2]
[324796126,1714335105354,-151.0,0.00012602,2]
[324796127,1714335105363,-5395.03,0.00012602,2]
[324796128,1714335105375,-500.0,0.00012602,2]
[324796129,1714335105386,-500.0,0.00012602,2]
[324796130,1714335105401,-500.0,0.00012602,2]
[324796131,1714335105411,-500.0,0.00012602,2]
[324796132,1714335105420,-564.8,0.00012602,2]
[324796133,1714335105431,-966.12,0.00012602,2]
[324796134,1714335105442,-665.52,0.00012602,2]
[324796135,1714335105454,-500.0,0.00012602,2]
[324796136,1714335105464,-439.856673,0.00012602,2]
[324796137,1714335105477,-500.0,0.00012602,2]
[324796138,1714335105487,-500.0,0.00012602,2]
[324796139,1714335105497,-439.856673,0.00012602,2]
[324796140,1714335105507,-500.0,0.00012602,2]
[324796141,1714335105515,-500.0,0.00012602,2]
[324796142,1714335105526,-608.01,0.00012602,2]
[324796143,1714335105536,-500.0,0.00012602,2]
[324796144,1714335105545,-500.0,0.00012602,2]
[324796145,1714335105555,-500.0,0.00012602,2]
[324796146,1714335105567,-706.48,0.00012602,2]
[324796147,1714335105578,-602.98,0.00012602,2]
[324796148,1714335105588,-500.0,0.00012602,2]
[324796149,1714335105597,-500.0,0.00012602,2]
[324796150,1714335105606,-1824.84,0.00012602,2]
[324796151,1714335105616,-598.93927254,0.00012602,2]
[324796152,1714335105625,-911.62,0.00012602,2]
[324796153,1714335105634,-1415.41,0.00012602,2]
[324796154,1714335105644,-500.0,0.00012602,2]
[324796155,1714335105655,-500.0,0.00012602,2]
[324796156,1714335105663,-211.09,0.00012602,2]
[324796157,1714335105674,-500.0,0.00012602,2]
[324796158,1714335105683,-500.0,0.00012602,2]
[324796159,1714335105693,-520.83,0.00012602,2]
[324796160,1714335105703,-228.84393257,0.00012602,2]
[324796161,1714335105712,-500.0,0.00012602,2]
[324796162,1714335105721,-500.0,0.00012602,2]
[324796163,1714335105731,-500.0,0.00012602,2]
[324796164,1714335105744,-1589.3,0.00012602,2]
[324796165,1714335105753,-500.0,0.00012602,2]
[324796166,1714335105763,-1830.16,0.00012602,2]
[324796167,1714335105773,-518.29845324,0.00012602,2]
[324796168,1714335105782,-447.05,0.00012602,2]
[324796169,1714335105792,-1311.58,0.00012602,2]
[324796170,1714335105801,-632.72,0.00012602,2]
[324796171,1714335105811,-500.0,0.00012602,2]
[324796172,1714335105820,-500.0,0.00012602,2]
[324796173,1714335105830,-662.93,0.00012602,2]
[324796174,1714335105839,-914.28,0.00012602,2]
[324796175,1714335105849,-500.0,0.00012602,2]
[324796176,1714335105858,-151.0,0.00012602,2]
[324796177,1714335105868,-500.0,0.00012602,2]
[324796178,1714335105877,-500.0,0.00012602,2]
[324796179,1714335105887,-3422.18,0.00012602,2]
[324796180,1714335105896,-500.0,0.00012602,2]
[324796181,1714335105905,-500.0,0.00012602,2]
[324796182,1714335105915,-500.0,0.00012602,2]
[324796183,1714335105924,-390.66671029,0.00012602,2]
[324796184,1714335105934,-767.88,0.00012602,2]
[324796185,1714335105943,-500.0,0.00012602,2]
[324796186,1714335105954,-735.24,0.00012602,2]
[324796187,1714335105964,-706.69,0.00012602,2]
[324796188,1714335105975,-500.0,0.00012602,2]
[324796189,1714335105984,-259.650878,0.00012602,2]
[324796190,1714335105994,-1342.45,0.00012602,2]
[324796191,1714335106003,-533.84,0.00012602,2]
[324796192,1714335106015,-788.02,0.00012602,2]
[324796193,1714335106024,-2092.94,0.00012602,2]
[324796194,1714335106034,-259.650878,0.00012602,2]
[324796195,1714335106044,-369.78,0.00012602,2]
[324796196,1714335106055,-500.0,0.00012602,2]
[324796197,1714335106067,-2167.16,0.00012602,2]
[324796198,1714335106076,-1698.03,0.00012602,2]
[324796199,1714335106086,-153.769222,0.00012602,2]
[324796200,1714335106096,-554.604274,0.00012602,2]
[324796201,1714335106105,-500.0,0.00012602,2]
[324796202,1714335106114,-500.0,0.00012602,2]
[324796203,1714335106123,-1776.941553,0.00012602,2]
[324796204,1714335106132,-554.604274,0.00012602,2]
[324796205,1714335106141,-500.0,0.00012602,2]
[324796206,1714335106151,-500.0,0.00012602,2]
[324796207,1714335106160,-5663.56,0.00012602,2]
[324796208,1714335106170,-500.0,0.00012602,2]
[324796209,1714335106179,-500.0,0.00012602,2]
[324796210,1714335106189,-1776.941553,0.00012602,2]
[324796211,1714335106198,-709.07,0.00012602,2]
[324796212,1714335106207,-500.0,0.00012602,2]
[324796213,1714335106216,-5318.53,0.00012602,2]
[324796214,1714335106226,-500.0,0.00012602,2]
[324796215,1714335106235,-576.42,0.00012602,2]
[324796216,1714335106246,-673.78,0.00012602,2]
[324796217,1714335106254,-730.03,0.00012602,2]
[324796218,1714335106263,-636.71,0.00012602,2]
[324796219,1714335106273,-500.0,0.00012602,2]
[324796220,1714335106282,-1119.99,0.00012602,2]
[324796221,1714335106291,-500.0,0.00012602,2]
[324796222,1714335106301,-3883.79,0.00012602,2]
[324796223,1714335106310,-500.0,0.00012602,2]
[324796224,1714335106319,-4497.99,0.00012602,2]
[324796225,1714335106328,-1502.91,0.00012602,2]
[324796226,1714335106337,-157.09682709,0.00012602,2]
[324796227,1714335106346,-505.03,0.00012602,2]
[324796228,1714335106355,-1373.5,0.00012602,2]
[324796229,1714335106364,-1354.41,0.00012602,2]
[324796230,1714335106373,-10290.32,0.00012602,2]
[324796231,1714335106390,-2176.76,0.00012602,2]
[324796232,1714335106404,-1071.21,0.00012602,2]
[324796233,1714335106414,-500.0,0.00012602,2]
[324796234,1714335106424,-500.0,0.00012602,2]
[324796235,1714335106435,-639.11,0.00012602,2]
[324796236,1714335106444,-500.0,0.00012602,2]
[324796237,1714335106453,-1877.516642,0.00012602,2]
[324796238,1714335106462,-578.66,0.00012602,2]
[324796239,1714335106473,-1357.3,0.00012602,2]
[324796240,1714335106484,-8156.81,0.00012602,2]
[324796241,1714335106495,-1877.516642,0.00012602,2]
[324796242,1714335106504,-500.0,0.00012602,2]
[324796243,1714335106513,-583.22,0.00012602,2]
[324796244,1714335106522,-580.74,0.00012602,2]
[324796245,1714335106531,-1739.27,0.00012602,2]
[324796246,1714335106541,-500.0,0.00012602,2]
[324796247,1714335106550,-1338.92,0.00012602,2]
[324796248,1714335106560,-250.05035587,0.00012602,2]
[324796249,1714335106570,-500.0,0.00012602,2]
[324796250,1714335106580,-1602.59,0.00012602,2]
[324796251,1714335106589,-151.0,0.00012602,2]
[324796252,1714335106599,-500.0,0.00012602,2]
[324796253,1714335106608,-3585.18,0.00012602,2]
[324796254,1714335106618,-3404.45,0.00012602,2]
[324796255,1714335106627,-500.0,0.00012602,2]
[324796256,1714335106637,-3861.32,0.00012602,2]
[324796257,1714335106647,-584.32,0.00012602,2]
[324796258,1714335106656,-1528.83,0.00012602,2]
[324796259,1714335106666,-1912.47,0.00012602,2]
[324796260,1714335106676,-2219.685263,0.00012602,2]
[324796261,1714335106687,-500.0,0.00012602,2]
[324796262,1714335106697,-500.0,0.00012602,2]
[324796263,1714335106707,-2219.685263,0.00012602,2]
[324796264,1714335106717,-500.0,0.00012602,2]
[324796265,1714335106727,-530.84,0.00012602,2]
[324796266,1714335106737,-1414.12,0.00012602,2]
[324796267,1714335106748,-500.0,0.00012602,2]
[324796268,1714335106759,-1402.340596,0.00012602,2]
[324796269,1714335106768,-500.0,0.00012602,2]
[324796270,1714335106778,-500.0,0.00012602,2]
[324796271,1714335106789,-4357.97,0.00012602,2]
[324796272,1714335106799,-3715.69,0.00012602,2]
[324796273,1714335106810,-1402.340596,0.00012602,2]
[324796274,1714335106820,-914.96,0.00012602,2]
[324796275,1714335106830,-556.03,0.00012602,2]
[324796276,1714335106840,-500.0,0.00012602,2]
[324796277,1714335106850,-500.0,0.00012602,2]
[324796278,1714335106861,-2110.76,0.00012602,2]
[324796279,1714335106871,-500.0,0.00012602,2]
[324796280,1714335106881,-500.0,0.00012602,2]
[324796281,1714335106891,-4413.77,0.00012602,2]
[324796282,1714335106902,-162.373722,0.00012602,2]
[324796283,1714335106912,-660.54,0.00012602,2]
[324796284,1714335106922,-151.0,0.00012602,2]
[324796285,1714335106932,-1063.45,0.00012602,2]
[324796286,1714335106942,-162.373722,0.00012602,2]
[324796287,1714335106952,-504.89658962,0.00012602,2]
[324796288,1714335106962,-10713.43,0.00012602,2]
[324796289,1714335106972,-500.0,0.00012602,2]
[324796290,1714335106983,-319.75138581,0.00012602,2]
[324796291,1714335106993,-254.40095,0.00012602,2]
[324796292,1714335107004,-500.0,0.00012602,2]
[324796293,1714335107015,-777.04,0.00012602,2]
[324796294,1714335107024,-500.0,0.00012602,2]
[324796295,1714335107035,-584.78,0.00012602,2]
[324796296,1714335107045,-2092.03,0.00012602,2]
[324796297,1714335107056,-2059.96,0.00012602,2]
[324796298,1714335107066,-500.0,0.00012602,2]
[324796299,1714335107077,-674.68,0.00012602,2]
[324796300,1714335107087,-6179.61,0.00012602,2]
[324796301,1714335107098,-7807.56,0.00012602,2]
[324796302,1714335107108,-1071.510703,0.00012602,2]
[324796303,1714335107118,-1585.49,0.00012602,2]
[324796304,1714335107128,-522.18,0.00012602,2]
[324796305,1714335107138,-500.0,0.00012602,2]
[324796306,1714335107148,-644.87,0.00012602,2]
[324796307,1714335107158,-500.0,0.00012602,2]
[324796308,1714335107168,-1071.510703,0.00012602,2]
[324796309,1714335107178,-1634.43,0.00012602,2]
[324796310,1714335107188,-500.0,0.00012602,2]
[324796311,1714335107198,-270.937038,0.00012602,2]
[324796312,1714335107208,-500.0,0.00012602,2]
[324796313,1714335107218,-889.84,0.00012602,2]
[324796314,1714335107228,-1305.51,0.00012602,2]
[324796315,1714335107238,-500.0,0.00012602,2]
[324796316,1714335107248,-500.0,0.00012602,2]
[324796317,1714335107258,-7923.02,0.00012602,2]
[324796318,1714335107268,-560.52,0.00012602,2]
[324796319,1714335107278,-270.937038,0.00012602,2]
[324796320,1714335107288,-590.45,0.00012602,2]
[324796321,1714335107298,-7586.52,0.00012602,2]
[324796322,1714335107308,-500.0,0.00012602,2]
[324796323,1714335107317,-500.0,0.00012602,2]
[324796324,1714335107328,-2933.808158,0.00012602,2]
[324796325,1714335107338,-585.65,0.00012602,2]
[324796326,1714335107349,-2052.98,0.00012602,2]
[324796327,1714335107359,-679.49,0.00012602,2]
[324796328,1714335107369,-585.79,0.00012602,2]
[324796329,1714335107379,-5227.15,0.00012602,2]
[324796330,1714335107391,-550.705949,0.00012602,2]
[324796331,1714335107403,-2933.808158,0.00012602,2]
[324796332,1714335107413,-1925.76,0.00012602,2]
[324796333,1714335107423,-500.0,0.00012602,2]
[324796334,1714335107435,-3698.54,0.00012602,2]
[324796335,1714335107444,-500.0,0.00012602,2]
[324796336,1714335107454,-1470.84,0.00012602,2]
[324796337,1714335107464,-537.76,0.00012602,2]
[324796338,1714335107474,-911.54,0.00012602,2]
[324796339,1714335107484,-1419.51,0.00012602,2]
[324796340,1714335107494,-321.367418,0.00012602,2]
[324796341,1714335107505,-517.59048142,0.00012602,2]
[324796342,1714335107515,-550.705949,0.00012602,2]
[324796343,1714335107526,-854.24,0.00012602,2]
[324796344,1714335107535,-318.996419,0.00012602,2]
[324796345,1714335107545,-1077.75,0.00012602,2]
[324796346,1714335107555,-321.367418,0.00012602,2]
[324796347,1714335107566,-152.653367,0.00012602,2]
[324796348,1714335107575,-500.0,0.00012602,2]
[324796349,1714335107585,-318.996419,0.00012602,2]
[324796350,1714335107595,-530.39,0.00012602,2]
[324796351,1714335107605,-4094.38,0.00012602,2]
[324796352,1714335107614,-2717.25,0.00012602,2]
[324796353,1714335107624,-500.0,0.00012602,2]
[324796354,1714335107633,-579.048538,0.00012602,2]
[324796355,1714335107643,-947.74,0.00012602,2]
[324796356,1714335107653,-1974.12,0.00012602,2]
[324796357,1714335107663,-579.048538,0.00012602,2]
[324796358,1714335107673,-1503.79,0.00012602,2]
[324796359,1714335107683,-1354.91,0.00012602,2]
[324796360,1714335107692,-1990.76,0.00012602,2]
[324796361,1714335107703,-2218.47,0.00012602,2]
[324796362,1714335107712,-500.0,0.00012602,2]
[324796363,1714335107722,-1792.37,0.00012602,2]
[324796364,1714335107732,-989.54,0.00012602,2]
[324796365,1714335107742,-1852.44,0.00012602,2]
[324796366,1714335107751,-500.0,0.00012602,2]
[324796367,1714335107761,-151.0,0.00012602,2]
[324796368,1714335107771,-2057.04,0.00012602,2]
[324796369,1714335107781,-511.72,0.00012602,2]
[324796370,1714335107791,-500.0,0.00012602,2]
[324796371,1714335107801,-500.0,0.00012602,2]
[324796372,1714335107811,-879.95,0.00012602,2]
[324796373,1714335107821,-6407.06,0.00012602,2]
[324796374,1714335107830,-664.66,0.00012602,2]
[324796375,1714335107840,-2262.97,0.00012602,2]
[324796376,1714335107850,-3147.07,0.00012602,2]
[324796377,1714335107861,-426.636916,0.00012602,2]
[324796378,1714335107871,-2302.016395,0.00012602,2]
[324796379,1714335107881,-1216.68,0.00012602,2]
[324796380,1714335107891,-307.8,0.00012602,2]
[324796381,1714335107901,-676.6,0.00012602,2]
[324796382,1714335107911,-500.0,0.00012602,2]
[324796383,1714335107921,-518.32,0.00012602,2]
[324796384,1714335107931,-220.022233,0.00012602,2]
[324796385,1714335107941,-1929.79,0.00012602,2]
[324796386,1714335107951,-426.636916,0.00012602,2]
[324796387,1714335107960,-2302.016395,0.00012602,2]
[324796388,1714335107970,-544.30514368,0.00012602,2]
[324796389,1714335107980,-500.0,0.00012602,2]
[324796390,1714335107989,-3019.82,0.00012602,2]
[324796391,1714335107999,-1079.35,0.00012602,2]
[324796392,1714335108009,-220.022233,0.00012602,2]
[324796393,1714335108019,-500.0,0.00012602,2]
[324796394,1714335108029,-3348.29,0.00012602,2]
[324796395,1714335108039,-604.29,0.00012602,2]
[324796396,1714335108049,-823.29,0.00012602,2]
[324796397,1714335108059,-500.0,0.00012602,2]
[324796398,1714335108069,-563.66,0.00012602,2]
[324796399,1714335108079,-1121.23,0.00012602,2]
[324796400,1714335108089,-500.0,0.00012602,2]
[324796401,1714335108100,-6639.12,0.00012602,2]
[324796402,1714335108112,-500.0,0.00012602,2]
[324796403,1714335108123,-500.0,0.00012602,2]
[324796404,1714335108135,-1327.37,0.00012602,2]
[324796405,1714335108146,-542.65,0.00012602,2]
[324796406,1714335108158,-500.0,0.00012602,2]
[324796407,1714335108168,-1829.171623,0.00012602,2]
[324796408,1714335108181,-764.49,0.00012602,2]
[324796409,1714335108193,-1122.94,0.00012602,2]
[324796410,1714335108205,-1249.42,0.00012602,2]
[324796411,1714335108215,-619.83,0.00012602,2]
[324796412,1714335108226,-2202.24,0.00012602,2]
[324796413,1714335108238,-1402.910597,0.00012602,2]
[324796414,1714335108249,-365.581841,0.00012602,2]
[324796415,1714335108261,-823.96,0.00012602,2]
[324796416,1714335108272,-1829.171623,0.00012602,2]
[324796417,1714335108282,-500.0,0.00012602,2]
[324796418,1714335108295,-1402.910597,0.00012602,2]
[324796419,1714335108305,-365.581841,0.00012602,2]
[324796420,1714335108316,-2697.02,0.00012602,2]
[324796421,1714335108328,-2085.16,0.00012602,2]
[324796422,1714335108338,-500.0,0.00012602,2]
[324796423,1714335108348,-532.18,0.00012602,2]
[324796424,1714335108358,-500.0,0.00012602,2]
[324796425,1714335108368,-221.722352,0.00012602,2]
[324796426,1714335108378,-2495.22,0.00012602,2]
[324796427,1714335108390,-500.0,0.00012602,2]
[324796428,1714335108402,-2332.66,0.00012602,2]
[324796429,1714335108413,-500.0,0.00012602,2]
[324796430,1714335108424,-362.27,0.00012602,2]
[324796431,1714335108435,-1688.86,0.00012602,2]
[324796432,1714335108446,-221.722352,0.00012602,2]
[324796433,1714335108455,-500.0,0.00012602,2]
[324796434,1714335108466,-500.0,0.00012602,2]
[324796435,1714335108477,-302.45782,0.00012602,2]
[324796436,1714335108487,-724.01,0.00012602,2]
[324796437,1714335108497,-1499.38,0.00012602,2]
[324796438,1714335108507,-5656.14,0.00012602,2]
[324796439,1714335108517,-3315.89,0.00012602,2]
[324796440,1714335108527,-302.45782,0.00012602,2]
[324796441,1714335108537,-938.48,0.00012602,2]
[324796442,1714335108547,-500.0,0.00012602,2]
[324796443,1714335108556,-2106.68,0.00012602,2]
[324796444,1714335108566,-594.41,0.00012602,2]
[324796445,1714335108575,-500.0,0.00012602,2]